bitfinex/quotes_BTCUSD_20260308
["timestamp","ask_amount","ask_price","bid_price","bid_amount"]
[1772987946861,0.07498213,66879.0,66872.0,0.07628938]
[1772987947265,0.07498213,66879.0,66872.0,0.00152]
[1772987948032,0.00022001,66879.0,66872.0,0.07628948]
[1772987948275,0.07475992,66881.0,66872.0,0.07628948]
[1772987948578,0.07475992,66881.0,66873.0,0.17730313]
[1772987948827,0.07506297,66882.0,66873.0,0.17730313]
[1772987949416,0.0003043,66882.0,66874.0,0.01621119]
[1772987949627,0.0003043,66882.0,66874.0,0.17649912]
[1772987950371,0.00022001,66883.0,66875.0,0.07476635]
[1772987950586,0.00022001,66883.0,66875.0,0.25126547]
[1772987951081,0.00022001,66883.0,66875.0,0.23505428]
[1772987952204,0.00022001,66885.0,66876.0,0.17649912]
[1772987952536,0.00022001,66885.0,66877.0,0.07476411]
[1772987953307,0.01167517,66888.0,66880.0,0.17649912]
[1772987953534,0.01179461,66888.0,66880.0,0.17649912]
[1772987953851,0.01179461,66888.0,66878.0,0.00152]
[1772987954058,0.01179461,66888.0,66878.0,0.17801912]
[1772987954280,0.01179461,66888.0,66878.0,0.16180793]
[1772987954478,0.00011944,66888.0,66879.0,0.09097307]
[1772987954725,0.00022001,66892.0,66879.0,0.09097307]
[1772987954726,0.00022001,66898.0,66881.0,0.16028793]
[1772987954936,0.00022001,66898.0,66884.0,0.01621119]
[1772987955162,1e-08,66895.0,66886.0,0.01621119]
[1772987955373,1e-08,66895.0,66885.0,0.00152]
[1772987955374,0.0746951,66903.0,66887.0,0.16028793]
[1772987955571,0.0746951,66903.0,66891.0,0.16028793]
[1772987955777,0.07670171,66907.0,66894.0,0.01621119]
[1772987955778,0.07473193,66906.0,66894.0,0.01621119]
[1772987955923,0.07518206,66907.0,66895.0,0.17649912]
[1772987956132,0.07518206,66907.0,66895.0,0.16028793]
[1772987956133,0.00045111,66907.0,66895.0,0.16028793]
[1772987956331,0.00045111,66907.0,66898.0,0.07474064]
[1772987956538,1e-08,66907.0,66901.0,0.16028793]
[1772987956730,1e-08,66907.0,66902.0,0.16180793]
[1772987957581,1e-08,66907.0,66902.0,0.17801912]
[1772987957740,1e-08,66907.0,66902.0,0.00152]
[1772987957943,0.01755397,66907.0,66902.0,0.00152]
[1772987958186,1e-08,66907.0,66902.0,0.00152]
[1772987958566,0.00022002,66907.0,66903.0,0.07473506]
[1772987959115,0.00022002,66907.0,66902.0,0.00152]
[1772987959269,0.00022002,66907.0,66902.0,0.07625591]
[1772987959649,0.07473171,66906.0,66896.0,0.07474262]
[1772987959892,0.01755396,66905.0,66895.0,0.076264]
[1772987960265,0.01755396,66905.0,66895.0,0.074744]
[1772987960465,0.01755396,66905.0,66895.0,0.076264]
[1772987960666,0.00048,66911.0,66895.0,0.076264]
[1772987960667,0.08026974,66917.0,66897.0,0.01621119]
[1772987961027,0.01755396,66916.0,66900.0,0.17649912]
[1772987961206,0.01755396,66916.0,66900.0,0.16028793]
[1772987961358,0.01755396,66916.0,66901.0,0.17649912]
[1772987961571,0.01755396,66916.0,66902.0,0.00152]
[1772987961780,0.01755396,66916.0,66895.0,0.23503193]
[1772987961982,0.01755396,66913.0,66896.0,0.00152]
[1772987962178,0.08038935,66917.0,66896.0,0.00152]
[1772987962179,0.0001431,66915.0,66898.0,0.01621119]
[1772987962398,0.0001431,66915.0,66901.0,0.16028793]
[1772987962614,0.07486476,66915.0,66903.0,0.07473506]
[1772987962790,0.07486476,66915.0,66904.0,0.17649912]
[1772987963487,0.07486476,66915.0,66903.0,0.07473506]
[1772987963488,0.0001431,66915.0,66906.0,0.16028793]
[1772987963686,0.0001431,66915.0,66907.0,0.01621119]
[1772987964086,0.0001431,66915.0,66908.0,0.00152]
[1772987964685,0.0001431,66915.0,66909.0,0.07472836]
[1772987965731,0.00022001,66915.0,66909.0,0.07472836]
[1772987969301,0.01755396,66913.0,66903.0,0.00152]
[1772987969804,0.00022001,66915.0,66903.0,0.16180793]
[1772987970800,0.01755396,66914.0,66903.0,0.00152]
[1772987971234,0.01755396,66912.0,66904.0,0.00152]
[1772987971796,0.01755396,66912.0,66899.0,0.07473873]
[1772987971959,0.01755396,66912.0,66900.0,0.00152]
[1772987972615,0.01755396,66909.0,66893.0,0.07474401]
[1772987972925,0.01755396,66909.0,66895.0,0.00152]
[1772987973127,0.01755396,66909.0,66896.0,0.07474288]
[1772987973128,0.07472947,66908.0,66896.0,0.07474288]
[1772987973288,0.01755396,66907.0,66896.0,0.07474288]
[1772987973693,0.07472947,66909.0,66896.0,0.07474288]
[1772987973896,0.07472395,66913.0,66899.0,0.14830152]
[1772987974122,0.07494522,66912.0,66901.0,0.14830152]
[1772987974320,0.07494522,66912.0,66896.0,0.07474288]
[1772987974321,0.01755396,66911.0,66902.0,0.00152]
[1772987974656,0.01755396,66911.0,66896.0,0.07474288]
[1772987974876,0.01755396,66911.0,66897.0,0.00152]
[1772987975231,0.07494522,66912.0,66901.0,0.14830152]
[1772987975232,0.00022001,66912.0,66901.0,0.14830152]
[1772987975436,0.00022001,66912.0,66900.0,0.07473841]
[1772987975437,0.00022001,66915.0,66904.0,0.01621119]
[1772987975810,0.00022001,66915.0,66907.0,0.14830152]
[1772987975992,0.00022001,66915.0,66907.0,0.16451271]
[1772987976643,0.09248972,66921.0,66908.0,0.01621119]
[1772987976644,0.00022001,66921.0,66908.0,0.01621119]
[1772987976842,0.000618,66921.0,66905.0,0.00152]
[1772987977212,0.01817196,66921.0,66908.0,0.14830152]
[1772987977597,0.000618,66921.0,66909.0,0.01621119]
[1772987977798,0.000618,66921.0,66910.0,0.16451271]
[1772987977976,0.000618,66921.0,66911.0,0.00152]
[1772987978177,0.0090069,66925.0,66912.0,0.14830152]
[1772987978410,0.08371757,66925.0,66915.0,0.01601087]
[1772987978559,0.08371743,66925.0,66916.0,0.14830152]
[1772987978763,0.08371743,66925.0,66917.0,0.00152]
[1772987979194,0.000236,66928.0,66919.0,0.16158288]
[1772987979535,0.01387098,66935.0,66921.0,0.01328136]
[1772987979536,0.07622142,66934.0,66921.0,0.01328136]
[1772987979718,0.01387098,66933.0,66920.0,0.14830152]
[1772987980175,0.01539098,66933.0,66920.0,0.14830152]
[1772987980346,0.01539098,66933.0,66920.0,0.16158288]
[1772987980940,0.01539098,66933.0,66918.0,0.07471831]
[1772987980941,0.00022001,66925.0,66918.0,0.07471831]
[1772987981154,0.00022001,66925.0,66918.0,0.23630119]
[1772987981917,0.00022001,66925.0,66918.0,0.07471831]
[1772987982120,0.00022001,66925.0,66919.0,0.16158288]
[1772987983567,0.01387098,66924.0,66916.0,0.07472054]
[1772987983797,0.01387098,66924.0,66916.0,0.00152]
[1772987983928,0.01387098,66924.0,66913.0,0.07472333]
[1772987983929,0.01387098,66923.0,66914.0,0.07472277]
[1772987984987,0.00022001,66925.0,66914.0,0.07472277]
[1772987985479,0.07493057,66925.0,66914.0,0.07472277]
[1772987987997,0.00022001,66925.0,66914.0,0.07472277]
[1772987988237,0.07493134,66925.0,66914.0,0.07472277]
[1772987988407,0.07470379,66931.0,66916.0,0.01262661]
[1772987988580,0.00152,66930.0,66917.0,0.16092813]
[1772987988984,0.01539098,66930.0,66917.0,0.16092813]
[1772987989780,0.07470603,66929.0,66918.0,0.07471831]
[1772987989979,0.07470603,66929.0,66919.0,0.00152]
[1772987990784,0.01387098,66928.0,66919.0,0.00152]
[1772987990983,0.01387098,66926.0,66918.0,0.07471831]
[1772987991830,0.01387098,66926.0,66913.0,0.07472389]
[1772987991831,0.0747103,66926.0,66913.0,0.07472389]
[1772987992007,0.01387098,66925.0,66914.0,0.00152]
[1772987992544,0.01387098,66925.0,66915.0,0.00152]
[1772987992893,0.01387098,66925.0,66916.0,0.00152]
[1772987993324,0.01387098,66925.0,66913.0,0.07472389]
[1772987993534,0.07470268,66933.0,66918.0,0.14830152]
[1772987993736,0.08879702,66932.0,66918.0,0.14830152]
[1772987993944,0.08879702,66932.0,66919.0,0.07471719]
[1772987994089,0.08879702,66932.0,66919.0,0.22301871]
[1772987994507,0.00152,66935.0,66921.0,0.01328136]
[1772987994709,0.07491857,66936.0,66922.0,0.14830152]
[1772987994909,0.00022001,66936.0,66925.0,0.01328136]
[1772987995126,0.00022001,66936.0,66927.0,0.01328136]
[1772987995331,0.07469735,66937.0,66930.0,0.01328136]
[1772987995533,0.07469735,66937.0,66930.0,0.00152]
[1772987995841,0.01387098,66936.0,66930.0,0.00152]
[1772987996141,0.07469933,66935.0,66928.0,0.00152]
[1772987997250,0.01387098,66934.0,66926.0,0.00152]
[1772987997420,0.07469933,66935.0,66926.0,0.00152]
[1772987997630,0.07469933,66935.0,66926.0,0.01480136]
[1772987997872,0.07469933,66935.0,66927.0,0.01328136]
[1772987998052,0.07469735,66937.0,66928.0,0.07470714]
[1772988000348,0.07484598,66938.0,66928.0,0.07470714]
[1772988000918,0.07484598,66938.0,66929.0,0.01328136]
[1772988001115,0.07484598,66938.0,66930.0,0.01328136]
[1772988001536,0.07491575,66939.0,66930.0,0.01328136]
[1772988001537,0.00022001,66939.0,66930.0,0.01328136]
[1772988001743,0.07491516,66939.0,66930.0,0.01328136]
[1772988002393,0.07491516,66939.0,66930.0,0.08798581]
[1772988002889,0.01387098,66938.0,66928.0,0.07470714]
[1772988003316,0.07491516,66939.0,66928.0,0.07470714]
[1772988003458,0.00022001,66939.0,66929.0,0.16689709]
[1772988003648,0.00022001,66939.0,66928.0,0.07470714]
[1772988003649,0.00022001,66939.0,66932.0,0.01328136]
[1772988004085,0.07491548,66939.0,66928.0,0.07470714]
[1772988004304,0.0746971,66937.0,66919.0,0.01328136]
[1772988004457,0.01387098,66936.0,66920.0,0.07623607]
[1772988004877,0.01387098,66936.0,66920.0,0.08747119]
[1772988005230,0.01387098,66936.0,66921.0,0.01123512]
[1772988006556,0.08856969,66936.0,66922.0,0.08594896]
[1772988006761,0.00152,66938.0,66922.0,0.08594896]
[1772988006762,0.00152,66938.0,66924.0,0.01123512]
[1772988006962,0.0749149,66939.0,66927.0,0.16569444]
[1772988007158,0.0749149,66939.0,66928.0,0.16569444]
[1772988007339,0.07491518,66939.0,66929.0,0.01123512]
[1772988007528,0.00022001,66939.0,66930.0,0.01123512]
[1772988007732,0.00022001,66939.0,66932.0,0.01123512]
[1772988007733,0.07491512,66939.0,66932.0,0.01123512]
[1772988007935,0.08619822,66939.0,66926.0,0.00152]
[1772988008347,0.00022001,66936.0,66926.0,0.00152]
[1772988008527,0.00022001,66936.0,66927.0,0.07470826]
[1772988009862,0.00022001,66939.0,66930.0,0.01097508]
[1772988010054,0.00022001,66939.0,66931.0,0.01097508]
[1772988010679,0.12937441,66956.0,66934.0,0.01097508]
[1772988010878,0.07467929,66953.0,66937.0,0.16569444]
[1772988011080,0.07467702,66955.0,66940.0,0.01097508]
[1772988011303,0.08511363,66956.0,66943.0,0.01097508]
[1772988011492,0.0746761,66956.0,66944.0,0.01249508]
[1772988011713,0.07467373,66958.0,66947.0,0.16569444]
[1772988011939,0.00047,66960.0,66951.0,0.16569444]
[1772988012224,0.00047,66960.0,66952.0,0.01097508]
[1772988012425,0.00012,66961.0,66954.0,0.16569444]
[1772988012757,0.07642007,66967.0,66955.0,0.07467702]
[1772988012758,0.0002382,66963.0,66955.0,0.07467702]
[1772988013163,0.0002382,66963.0,66955.0,0.0856521]
[1772988013696,0.0002382,66963.0,66955.0,0.08548543]
[1772988014156,0.00023,66968.0,66955.0,0.07451035]
[1772988014319,0.00023,66968.0,66957.0,0.16569444]
[1772988014519,0.00023,66968.0,66958.0,0.01097508]
[1772988014784,0.00023,66968.0,66959.0,0.07604256]
[1772988015108,1e-08,66968.0,66961.0,0.16569444]
[1772988015340,1e-08,66968.0,66963.0,0.01097508]
[1772988015558,1e-08,66968.0,66965.0,0.01097508]
[1772988015779,1e-08,66968.0,66959.0,0.07452256]
[1772988015780,0.01043753,66967.0,66959.0,0.07452256]
[1772988015990,0.07466253,66968.0,66952.0,0.07467964]
[1772988015991,0.01043753,66966.0,66952.0,0.07467964]
[1772988016194,0.01043753,66965.0,66953.0,0.00152]
[1772988016390,0.01043753,66962.0,66951.0,0.00011937]
[1772988016642,0.01043753,66960.0,66946.0,0.00152]
[1772988016845,0.01043753,66957.0,66947.0,0.07468594]
[1772988017219,0.07467367,66958.0,66947.0,0.07468594]
[1772988017846,0.07467367,66958.0,66948.0,0.01097508]
[1772988018483,0.07467367,66958.0,66947.0,0.07468594]
[1772988018671,0.07467367,66958.0,66951.0,0.001]
[1772988019029,0.00152,66959.0,66951.0,0.01097508]
[1772988019232,0.00011926,66960.0,66951.0,0.01097508]
[1772988019470,0.00011926,66960.0,66929.0,0.0004502]
[1772988019471,0.15862272,66945.0,66929.0,0.0004502]
[1772988019779,0.01043753,66942.0,66929.0,0.0004502]
[1772988020010,0.00152,66944.0,66918.0,0.07623773]
[1772988020011,0.01043753,66938.0,66918.0,0.07623773]
[1772988020174,0.01043753,66934.0,66919.0,0.07471644]
[1772988020470,0.1902546,66949.0,66917.0,0.08028886]
[1772988020471,0.15862272,66929.0,66917.0,0.08028886]
[1772988020673,0.01195753,66928.0,66917.0,0.08028923]
[1772988020816,0.07471049,66925.0,66917.0,0.08028923]
[1772988021231,0.01043753,66924.0,66917.0,0.00557]
[1772988021439,0.01043753,66924.0,66922.0,0.00015]
[1772988022900,0.08514958,66924.0,66922.0,0.00015]
[1772988023329,0.01043753,66923.0,66922.0,0.00015]
[1772988023656,0.0746904,66943.0,66922.0,0.00015]
[1772988023837,0.01043753,66940.0,66923.0,0.16569444]
[1772988024139,0.00174001,66939.0,66924.0,0.01097508]
[1772988024408,0.01217754,66939.0,66924.0,0.01097508]
[1772988024616,0.01217754,66939.0,66923.0,0.16569444]
[1772988024617,0.00011922,66943.0,66923.0,0.00152]
[1772988024833,0.00152,66950.0,66927.0,0.16569444]
[1772988025039,0.00152,66951.0,66933.0,0.01097508]
[1772988025256,0.00152,66950.0,66935.0,0.17666952]
[1772988025485,0.00152,66950.0,66935.0,0.16569444]
[1772988025707,0.15862272,66947.0,66933.0,0.00152]
[1772988025907,0.01043753,66946.0,66933.0,0.00152]
[1772988026243,0.01043753,66946.0,66933.0,0.001]
[1772988027078,0.07468817,66945.0,66934.0,0.07470045]
[1772988027296,0.00152,66944.0,66934.0,0.07470045]
[1772988027467,0.07468817,66945.0,66934.0,0.07470045]
[1772988027673,0.00152,66944.0,66934.0,0.07470045]
[1772988028518,0.07468817,66945.0,66934.0,0.07470045]
[1772988028847,0.07620817,66945.0,66934.0,0.07470045]
[1772988029072,0.07620817,66945.0,66934.0,0.07453375]
[1772988029298,0.01043753,66942.0,66932.0,0.07470045]
[1772988031960,0.07469263,66941.0,66930.0,0.07470485]
[1772988032269,0.01043753,66942.0,66930.0,0.07470485]
[1772988032485,0.01043753,66942.0,66930.0,0.07453815]
[1772988032886,0.01043753,66942.0,66930.0,0.07605815]
[1772988033108,0.08512932,66942.0,66930.0,0.07605815]
[1772988035925,0.07469179,66942.0,66930.0,0.07605815]
[1772988036136,0.01043753,66941.0,66930.0,0.07605815]
[1772988036329,0.08513121,66941.0,66931.0,0.00152]
[1772988036733,0.08513121,66941.0,66930.0,0.07453815]
[1772988036909,0.07469368,66941.0,66929.0,0.0002]
[1772988037114,0.01043753,66938.0,66929.0,0.07642601]
[1772988038120,0.01043753,66938.0,66929.0,0.07742601]
[1772988038325,0.0746971,66937.0,66929.0,0.07642601]
[1772988039545,0.0746971,66937.0,66922.0,0.23984726]
[1772988039546,0.00887623,66935.0,66923.0,0.07471245]
[1772988039761,0.00887623,66935.0,66922.0,0.0749138]
[1772988039762,0.00887623,66933.0,66922.0,0.0749138]
[1772988040497,0.07470268,66932.0,66922.0,0.0749138]
[1772988040879,0.07470268,66932.0,66923.0,0.0002]
[1772988044061,0.07470268,66932.0,66924.0,0.00967984]
[1772988045918,0.07470268,66933.0,66925.0,0.07471049]
[1772988047395,0.07469375,66940.0,66927.0,0.16493359]
[1772988047702,0.07633301,66940.0,66929.0,0.00967984]
[1772988047905,0.00011926,66940.0,66931.0,0.16493359]
[1772988048109,0.07481316,66940.0,66932.0,0.00967984]
[1772988048434,1e-08,66941.0,66934.0,0.00967984]
[1772988048992,1e-08,66941.0,66935.0,0.00967984]
[1772988049421,0.07469268,66941.0,66932.0,0.00152]
[1772988049702,0.07469268,66941.0,66932.0,0.00163926]
[1772988050123,1e-08,66941.0,66933.0,0.07470156]
[1772988051279,1e-08,66941.0,66934.0,0.00967984]
[1772988052330,1e-08,66941.0,66935.0,0.07469933]
[1772988052530,1e-08,66941.0,66934.0,0.08437978]
[1772988053109,1e-08,66941.0,66934.0,0.07469994]
[1772988053450,1e-08,66941.0,66936.0,0.00967984]
[1772988054348,1e-08,66941.0,66936.0,0.08437729]
[1772988055594,1e-08,66941.0,66936.0,0.07469745]
[1772988056274,1e-08,66941.0,66932.0,0.00163926]
[1772988056695,1e-08,66941.0,66932.0,0.07634173]
[1772988059242,1e-08,66941.0,66923.0,0.0002]
[1772988059243,0.00887623,66939.0,66923.0,0.0002]
[1772988059460,0.00899549,66939.0,66924.0,0.07471101]
[1772988060342,0.00899549,66939.0,66924.0,0.08439085]
[1772988060770,0.00899549,66939.0,66924.0,0.00967984]
[1772988060771,0.07469598,66938.0,66924.0,0.00967984]
[1772988060984,0.00887623,66937.0,66924.0,0.00967984]
[1772988061197,0.00887623,66937.0,66923.0,0.0002]
[1772988061837,0.00887623,66937.0,66923.0,0.07491227]
[1772988062248,0.00887623,66937.0,66923.0,0.07491234]
[1772988062498,0.00887623,66937.0,66923.0,0.07491244]
[1772988062721,0.00887623,66937.0,66923.0,0.07491241]
[1772988063301,0.00887623,66935.0,66923.0,0.0002]
[1772988063519,0.00887623,66933.0,66923.0,0.0002]
[1772988065185,0.00887623,66933.0,66923.0,0.00380403]
[1772988065403,0.07470268,66932.0,66923.0,0.0002]
[1772988066642,0.0746966,66938.0,66924.0,0.16035296]
[1772988066852,0.0746966,66938.0,66928.0,0.16035296]
[1772988067088,0.0746966,66938.0,66930.0,0.16035296]
[1772988067514,0.07481524,66939.0,66930.0,0.16035296]
[1772988069737,0.00011926,66939.0,66931.0,0.00361929]
[1772988070264,0.00011926,66939.0,66931.0,0.16397225]
[1772988071641,0.00011926,66939.0,66931.0,0.23867516]
[1772988073792,0.00011926,66939.0,66931.0,0.23505587]
[1772988074419,0.00011926,66939.0,66932.0,0.16035296]
[1772988074761,1e-08,66941.0,66933.0,0.00786937]
[1772988074965,0.07469152,66944.0,66936.0,0.16035296]
[1772988074966,0.0746895,66944.0,66936.0,0.16035296]
[1772988075209,0.0746895,66944.0,66936.0,0.16047222]
[1772988075410,0.0746895,66944.0,66936.0,0.16063342]
[1772988075811,0.07468594,66947.0,66938.0,0.00786937]
[1772988076054,0.07468594,66949.0,66936.0,0.07497757]
[1772988076055,0.14916605,66949.0,66939.0,0.16035296]
[1772988076257,0.00022001,66953.0,66936.0,0.07497757]
[1772988076258,0.00022001,66953.0,66943.0,0.16035296]
[1772988076459,0.00022001,66953.0,66940.0,0.00152]
[1772988076460,0.00022001,66953.0,66945.0,0.16035296]
[1772988076990,0.00022001,66953.0,66946.0,0.00152]
[1772988077189,0.00015,66955.0,66947.0,0.16035296]
[1772988077830,0.00015,66955.0,66948.0,0.07468483]
[1772988078028,0.00015,66955.0,66947.0,0.23503852]
[1772988079764,0.00015,66955.0,66947.0,0.07468556]
[1772988080415,0.00015,66955.0,66948.0,0.16035296]
[1772988080694,0.00037001,66955.0,66948.0,0.16035296]
[1772988082028,0.00037001,66955.0,66949.0,0.07468371]
[1772988082780,0.07467476,66958.0,66949.0,0.08255308]
[1772988083000,0.07467476,66958.0,66950.0,0.16035296]
[1772988083201,0.00838372,66957.0,66948.0,0.07468371]
[1772988083842,0.00838372,66957.0,66946.0,0.0762069]
[1772988084320,0.08305962,66956.0,66946.0,0.0762069]
[1772988085922,0.16119108,66954.0,66944.0,0.00152]
[1772988086151,0.00838372,66952.0,66941.0,0.00152]
[1772988086348,0.0830652,66951.0,66942.0,0.07469152]
[1772988086839,0.00838372,66950.0,66942.0,0.07469152]
[1772988087439,0.07467571,66957.0,66943.0,0.16035296]
[1772988087736,0.00152,66956.0,66945.0,0.16035296]
[1772988088058,0.00022001,66956.0,66947.0,0.16035296]
[1772988088341,0.07489593,66956.0,66948.0,0.07468483]
[1772988088758,0.07489592,66956.0,66948.0,0.07468483]
[1772988089909,0.00022001,66956.0,66948.0,0.07468483]
[1772988090126,0.07489606,66956.0,66949.0,0.16035296]
[1772988090528,0.00022001,66956.0,66950.0,0.07468259]
[1772988090728,0.07489651,66956.0,66950.0,0.07468259]
[1772988090935,0.07489651,66956.0,66949.0,0.07468259]
[1772988094768,0.07489651,66956.0,66948.0,0.07468371]
[1772988095756,0.07489651,66956.0,66947.0,0.07640506]
[1772988098078,0.07489651,66956.0,66947.0,0.07488506]
[1772988099240,0.08305775,66958.0,66947.0,0.07488506]
[1772988099396,0.03773469,66977.0,66947.0,0.07488506]
[1772988099397,0.00152,66960.0,66950.0,0.16093272]
[1772988099568,0.00152,66960.0,66950.0,0.16245272]
[1772988100304,0.07489013,66962.0,66950.0,0.16245272]
[1772988100514,0.07641013,66962.0,66950.0,0.16245272]
[1772988101208,0.08253966,66962.0,66950.0,0.16245272]
[1772988101332,0.08405966,66962.0,66950.0,0.16245272]
[1772988101528,0.07641013,66962.0,66952.0,0.16871579]
[1772988102079,0.07641013,66962.0,66952.0,0.16093272]
[1772988102585,0.07641013,66962.0,66950.0,0.00152]
[1772988102857,0.00764953,66960.0,66949.0,0.07468266]
[1772988103272,0.00764953,66960.0,66948.0,0.07468266]
[1772988103472,0.00764953,66957.0,66948.0,0.07468266]
[1772988103679,0.00764953,66957.0,66947.0,0.0002]
[1772988104310,0.00764953,66957.0,66941.0,0.00152]
[1772988104311,0.00764953,66955.0,66941.0,0.00152]
[1772988104504,0.00764953,66955.0,66944.0,0.0002]
[1772988105080,0.00152,66955.0,66945.0,0.16093272]
[1772988105550,0.00152,66955.0,66946.0,0.07468706]
[1772988105951,0.07467367,66958.0,66946.0,0.07468706]
[1772988106155,0.00152,66955.0,66946.0,0.07468706]
[1772988106747,0.00764953,66958.0,66946.0,0.07468706]
[1772988107049,0.00152,66956.0,66947.0,0.16093272]
[1772988107221,0.00152,66957.0,66947.0,0.16093272]
[1772988107649,0.07467367,66959.0,66948.0,0.07468483]
[1772988107877,0.00152,66958.0,66948.0,0.07468483]
[1772988108435,0.07641285,66960.0,66948.0,0.07468483]
[1772988108656,0.07641285,66960.0,66949.0,0.16093272]
[1772988109958,0.07641285,66960.0,66950.0,0.07468259]
[1772988110140,0.00764953,66959.0,66950.0,0.07468259]
[1772988111575,0.07489285,66960.0,66950.0,0.07468259]
[1772988111777,0.00022001,66960.0,66951.0,0.16093272]
[1772988111998,0.00022001,66960.0,66952.0,0.23561308]
[1772988113038,0.00022001,66960.0,66952.0,0.07468036]
[1772988113215,0.00764953,66959.0,66952.0,0.07468036]
[1772988114111,0.00764953,66959.0,66948.0,0.07468483]
[1772988120492,0.00174001,66960.0,66949.0,0.16093272]
[1772988121069,0.07641222,66960.0,66949.0,0.16093272]
[1772988121273,0.00174001,66960.0,66949.0,0.16093272]
[1772988121440,0.00174001,66960.0,66950.0,0.07468259]
[1772988121845,0.00022001,66959.0,66950.0,0.07468259]
[1772988124666,0.00152,66967.0,66954.0,0.15824581]
[1772988124814,0.00802461,66966.0,66955.0,0.00152]
[1772988125356,1e-08,66968.0,66957.0,0.00812782]
[1772988125592,1e-08,66968.0,66958.0,0.16915743]
[1772988126222,1e-08,66968.0,66959.0,0.07467256]
[1772988126542,0.00011934,66968.0,66959.0,0.07467256]
[1772988130139,0.00033935,66968.0,66959.0,0.07467256]
[1772988131139,0.0080402,66967.0,66959.0,0.07467256]
[1772988132098,0.00033935,66968.0,66959.0,0.07467256]
[1772988132300,0.00033935,66968.0,66958.0,0.07467256]
[1772988132855,0.00033935,66968.0,66958.0,0.23570217]
[1772988133053,0.00033935,66968.0,66959.0,0.16102961]
[1772988133827,0.00033935,66968.0,66959.0,0.16925499]
[1772988134226,0.00033935,66968.0,66959.0,0.17025499]
[1772988134631,0.00033935,66968.0,66960.0,0.07467144]
[1772988135073,0.00092695,66968.0,66960.0,0.07467144]
[1772988136432,0.0080402,66967.0,66960.0,0.07467144]
[1772988136760,0.0080402,66967.0,66956.0,0.0746759]
[1772988136761,0.0080402,66966.0,66956.0,0.0746759]
[1772988137608,0.0005876,66967.0,66957.0,0.16102961]
[1772988138218,0.0005876,66967.0,66957.0,0.16925499]
[1772988139249,0.0005876,66967.0,66958.0,0.07467367]
[1772988140439,0.66319956,67038.0,66958.0,0.07467367]
[1772988140440,1e-08,66972.0,66958.0,0.07467367]
[1772988140613,1e-08,66972.0,66963.0,0.16102961]
[1772988140815,1e-08,66972.0,66966.0,0.00822538]
[1772988141052,1e-08,66972.0,66969.0,0.16102961]
[1772988141277,0.07464576,66984.0,66969.0,0.16102961]
[1772988141278,0.00152,66978.0,66971.0,0.16102961]
[1772988141471,0.193695,66986.0,66973.0,0.16102961]
[1772988141472,0.07464258,66986.0,66973.0,0.16102961]
[1772988141631,0.00152,66981.0,66973.0,0.16102961]
[1772988142031,0.0746437,66985.0,66973.0,0.16102961]
[1772988142242,0.0016548,66982.0,66973.0,0.16102961]
[1772988142666,0.0016548,66982.0,66970.0,0.07466029]
[1772988143723,0.0001348,66989.0,66971.0,0.16102961]
[1772988143949,0.0001348,66989.0,66975.0,0.16102961]
[1772988144150,0.0001348,66989.0,66976.0,0.16925499]
[1772988145180,0.0001348,66989.0,66976.0,0.17077499]
[1772988145381,0.0001348,66989.0,66977.0,0.07465249]
[1772988145591,0.00035481,66989.0,66977.0,0.07465249]
[1772988145798,0.00839501,66989.0,66977.0,0.07465249]
[1772988146371,0.00152,66988.0,66977.0,0.07465249]
[1772988147587,0.00454481,66987.0,66977.0,0.07465249]
[1772988148964,0.07616125,66988.0,66977.0,0.07465249]
[1772988150437,0.00152,66988.0,66978.0,0.00822538]
[1772988150758,0.00152,66988.0,66977.0,0.2356821]
[1772988150759,0.00035481,66989.0,66980.0,0.16102961]
[1772988150956,0.00035481,66989.0,66982.0,0.00822538]
[1772988151479,0.00035481,66989.0,66983.0,0.0746458]
[1772988152017,0.0007524,66989.0,66983.0,0.0746458]
[1772988153015,0.00022001,66988.0,66984.0,0.00822538]
[1772988153425,0.00022001,66988.0,66985.0,0.07464357]
[1772988154033,0.00022001,66988.0,66985.0,0.08286895]
[1772988154266,0.00022001,66995.0,66986.0,0.00822538]
[1772988154576,0.00022001,66995.0,66988.0,0.1560938]
[1772988154577,0.00011923,66995.0,66988.0,0.1560938]
[1772988154768,0.00011923,66995.0,66988.0,0.16431918]
[1772988155331,0.00011923,66995.0,66987.0,0.00152]
[1772988155332,0.07463466,66993.0,66987.0,0.00152]
[1772988155529,0.00015,66989.0,66983.0,0.0761658]
[1772988155785,0.00015,66989.0,66986.0,0.001]
[1772988156012,0.00015,66989.0,66983.0,0.0746458]
[1772988156356,0.00015,66989.0,66985.0,0.07464357]
[1772988156558,0.00011923,66995.0,66985.0,0.07464357]
[1772988157277,0.00011923,66995.0,66985.0,0.23896275]
[1772988157621,0.00011923,66995.0,66987.0,0.00822538]
[1772988157792,0.0016548,66997.0,66990.0,0.1560938]
[1772988157990,0.0016548,66997.0,66991.0,0.16431918]
[1772988158205,0.07628509,66997.0,66985.0,0.07464357]
[1772988158378,0.07628509,66997.0,66986.0,0.16431918]
[1772988158579,0.0001348,66997.0,66987.0,0.00152]
[1772988158780,0.0001348,66997.0,66988.0,0.1627319]
[1772988159654,0.00556,66998.0,66990.0,0.1560938]
[1772988159849,0.00556,66998.0,66992.0,0.1627319]
[1772988160152,1e-08,66998.0,66992.0,0.1627319]
[1772988160921,0.0016548,67004.0,66994.0,0.1560938]
[1772988161126,0.08285521,67004.0,66994.0,0.0003332]
[1772988161551,0.08133521,67004.0,66995.0,0.07463243]
[1772988161725,0.08285521,67004.0,66995.0,0.07463243]
[1772988161924,0.00671223,67003.0,66989.0,0.07463911]
[1772988162112,0.00671223,67003.0,66994.0,0.001]
[1772988162315,0.00671223,67001.0,66989.0,0.07463911]
[1772988162760,0.04957079,67000.0,66987.0,0.0001792]
[1772988162971,0.14794456,66996.0,66981.0,0.07616693]
[1772988163186,0.00823223,66995.0,66981.0,0.07616693]
[1772988163316,0.00823223,66995.0,66981.0,0.07464693]
[1772988163554,0.00671223,66993.0,66981.0,0.07464693]
[1772988163962,0.00671223,66993.0,66980.0,0.07464885]
[1772988164168,0.00671223,66993.0,66974.0,0.23738694]
[1772988164169,0.00671223,66993.0,66974.0,0.1627319]
[1772988164421,0.07463354,66994.0,66976.0,0.07465359]
[1772988164422,0.00671223,66989.0,66976.0,0.07465359]
[1772988164619,0.00671223,66987.0,66976.0,0.07465359]
[1772988165230,0.00671223,66987.0,66975.0,0.07465421]
[1772988165437,0.00671223,66987.0,66976.0,0.07465304]
[1772988165643,0.00671223,66985.0,66970.0,0.07486016]
[1772988165842,0.14794456,66985.0,66970.0,0.0002]
[1772988166038,0.07464246,66986.0,66970.0,0.0002]
[1772988166039,0.14794456,66984.0,66970.0,0.0002]
[1772988166406,0.14794456,66982.0,66967.0,0.07484272]
[1772988166596,0.07464246,66986.0,66967.0,0.07484272]
[1772988166597,0.00823223,66981.0,66967.0,0.07484272]
[1772988166751,0.00823223,66981.0,66967.0,0.23093652]